fUSD/lending_fUSD_20240613
["ID","MTS","AMOUNT","RATE_DAILY","PERIOD"]
[329389774,1718317853737,-530.49997998,0.00019178,2]
[329389775,1718317853756,-500.0,0.00019178,2]
[329389776,1718317853766,-211.01184066,0.00019178,2]
[329389777,1718317853777,-500.0,0.00019178,2]
[329389778,1718317853788,-232.53046765,0.00019178,2]
[329389779,1718317853799,-500.0,0.00019178,2]
[329389780,1718317853813,-405.57698348,0.00019178,2]
[329389781,1718317853824,-500.0,0.00019178,2]
[329389782,1718317853836,-500.0,0.00019178,2]
[329389783,1718317853847,-216.33917626,0.00019178,2]
[329389784,1718317853860,-497.27045491,0.00019178,2]
[329389785,1718317853877,-500.0,0.00019178,2]
[329389786,1718317853893,-346.55971762,0.00019178,2]
[329389787,1718317853924,-500.0,0.00019178,2]
[329389788,1718317853938,-500.0,0.00019178,2]
[329389789,1718317853954,-382.90836449,0.00019178,2]
[329389790,1718317853966,-500.0,0.00019178,2]
[329389791,1718317853976,-500.0,0.00019178,2]
[329389792,1718317853988,-500.0,0.00019178,2]
[329389793,1718317853999,-500.0,0.00019178,2]
[329389794,1718317854011,-500.0,0.00019178,2]
[329389795,1718317854042,-500.0,0.00019178,2]
[329389796,1718317854058,-500.0,0.00019178,2]
[329389797,1718317854072,-1000.0,0.000194,2]
[329389798,1718317854092,-1142.27562576,0.000194,2]
[329389799,1718317854103,-178.35118489,0.00019455,2]
[329389800,1718317854114,-287.11,0.00019473,2]
[329389801,1718317854125,-1000.0,0.00019515,2]
[329389802,1718317854140,-1010.84,0.00019519,2]
[329389803,1718317854151,-1696.0,0.000199,2]
[329389804,1718317854172,-645.72730004,0.0002,2]
[329389805,1718317854204,-1779.11097085,0.0002,2]
[329389806,1718317854217,-6267.29487457,0.0002,2]
[329389807,1718317854250,-155.0,0.0002,2]
[329389808,1718317854262,-155.0,0.0002,2]
[329389809,1718317854296,-155.0,0.0002,2]
[329389810,1718317854310,-305.0,0.0002,2]
[329389811,1718317854324,-3891.69438003,0.0002,2]
[329389812,1718317854337,-187.678251,0.0002,2]
[329389813,1718317854349,-150.0,0.0002,2]
[329389814,1718317854368,-12575.22121576,0.0002,2]
[329389815,1718317854380,-226.76270483,0.000201,2]
[329389816,1718317854391,-226.76270483,0.000201,2]
[329389817,1718317854405,-151.0,0.0002033,2]
[329389818,1718317854416,-151.0,0.0002033,2]
[329389819,1718317854427,-227.709661,0.0002033,2]
[329389820,1718317854439,-227.709661,0.0002033,2]
[329389821,1718317854457,-151.0,0.0002033,2]
[329389822,1718317854471,-273.856041,0.0002033,2]
[329389823,1718317854484,-479.16007328,0.00020355,2]
[329389824,1718317854499,-150.0,0.000205,2]
[329389825,1718317854522,-316.83251495,0.00020525,2]
[329389826,1718317854533,-4479.0,0.000207,5]
[329389827,1718317854556,-422.78,0.00020959,2]
[329389828,1718317854571,-164.25,0.00020959,2]
[329389829,1718317854586,-150.0,0.00020959,2]
[329389830,1718317854602,-1250.0,0.00021,2]
[329389831,1718317854629,-201.692111,0.00021,2]
[329389832,1718317854644,-150.0,0.00021,2]
[329389833,1718317854658,-1195.0,0.00021078,2]
[329389834,1718317854676,-1000.0,0.00021289,2]
[329389835,1718317854686,-373.85,0.00021382,2]
[329389836,1718317854698,-150.0,0.000215,3]
[329389837,1718317854710,-479.16007328,0.00021718,2]
[329389838,1718317854722,-178.35118489,0.00021732,2]
[329389839,1718317854733,-500.0,0.000219,2]
[329389840,1718317854744,-250.0,0.00021918,2]
[329389841,1718317854772,-598.33,0.00021918,2]
[329389842,1718317854786,-165.65,0.0002192,2]
[329389843,1718317854796,-165.65,0.0002192,2]
[329389844,1718317854811,-165.65,0.0002192,2]
[329389845,1718317854823,-165.65,0.0002192,2]
[329389846,1718317854835,-1000.0,0.00021994,2]
[329389847,1718317854845,-2418.08,0.00022,2]
[329389848,1718317854875,-150.0,0.00022,3]
[329389849,1718317854900,-150.0,0.00022261,2]
[329389850,1718317854911,-150.0,0.00022396,2]
[329389851,1718317854934,-316.83251495,0.000224,2]
[329389852,1718317854946,-300.0,0.0002242,2]
[329389853,1718317854957,-150.0,0.000225,3]
[329389854,1718317854970,-150.0,0.00022568,2]
[329389855,1718317854982,-150.0,0.00022726,2]
[329389856,1718317854993,-150.0,0.00022774,2]
[329389857,1718317855005,-150.0,0.00022797,2]
[329389858,1718317855016,-215.0,0.000228,2]
[329389859,1718317855028,-171.273403,0.00022858,2]
[329389860,1718317855048,-150.0,0.0002287,2]
[329389861,1718317855074,-150.0,0.00022932,2]
[329389862,1718317855084,-305.571,0.00022975,2]
[329389863,1718317855096,-2100.0,0.00022975,2]
[329389864,1718317855108,-155.0,0.00023,2]
[329389865,1718317855139,-500.0,0.00023,2]
[329389866,1718317855189,-500.0,0.00023,2]
[329389867,1718317855216,-500.0,0.00023,2]
[329389868,1718317855251,-500.0,0.00023,2]
[329389869,1718317855262,-500.0,0.00023,2]
[329389870,1718317855274,-500.0,0.00023,2]
[329389871,1718317855306,-500.0,0.00023,2]
[329389872,1718317855331,-500.0,0.00023,2]
[329389873,1718317855362,-183.45,0.00023,2]
[329389874,1718317855379,-500.0,0.00023,2]
[329389875,1718317855396,-500.0,0.00023,2]
[329389876,1718317855429,-500.0,0.00023,2]
[329389877,1718317855458,-500.0,0.00023,2]
[329389878,1718317855470,-500.0,0.00023,2]
[329389879,1718317855508,-500.0,0.00023,2]
[329389880,1718317855543,-500.0,0.00023,2]
[329389881,1718317855554,-500.0,0.00023,2]
[329389882,1718317855570,-500.0,0.00023,2]
[329389883,1718317855587,-500.0,0.00023,2]
[329389884,1718317855603,-500.0,0.00023,2]
[329389885,1718317855619,-500.0,0.00023,2]
[329389886,1718317855636,-500.0,0.00023,2]
[329389887,1718317855647,-500.0,0.00023,2]
[329389888,1718317855659,-500.0,0.00023,2]
[329389889,1718317855671,-500.0,0.00023,2]
[329389890,1718317855689,-500.0,0.00023,2]
[329389891,1718317855705,-500.0,0.00023,2]
[329389892,1718317855717,-500.0,0.00023,2]
[329389893,1718317855733,-500.0,0.00023,2]
[329389894,1718317855743,-500.0,0.00023,2]
[329389895,1718317855754,-500.0,0.00023,2]
[329389896,1718317855768,-500.0,0.00023,2]
[329389897,1718317855778,-428.18,0.00023,2]
[329389898,1718317855809,-500.0,0.00023,2]
[329389899,1718317855819,-500.0,0.00023,2]
[329389900,1718317855858,-200.0,0.00023,2]
[329389901,1718317855886,-150.0,0.00023,3]
[329389902,1718317855913,-160.69376116,0.00023,2]
[329389903,1718317855924,-150.0,0.00023013,2]
[329389904,1718317855934,-1500.0,0.00023045,2]
[329389905,1718317855950,-479.16007328,0.00023082,2]
[329389906,1718317855965,-150.0,0.00023143,2]
[329389907,1718317855986,-150.0,0.0002331,2]
[329389908,1718317856005,-150.0,0.0002332,2]
[329389909,1718317856015,-150.0,0.00023325,2]
[329389910,1718317856025,-300.0,0.00023354,2]
[329389911,1718317856036,-150.0,0.00023392,2]
[329389912,1718317856046,-171.273403,0.0002343,2]
[329389913,1718317856056,-150.0,0.000235,3]
[329389914,1718317856067,-150.0,0.00023529,2]
[329389915,1718317856077,-150.0,0.00023635,2]
[329389916,1718317856088,-373.85,0.00023646,2]
[329389917,1718317856098,-150.0,0.00023671,2]
[329389918,1718317856108,-150.0,0.00023687,2]
[329389919,1718317856119,-1000.0,0.0002369,2]
[329389920,1718317856130,-151.0,0.00023699,7]
[329389921,1718317856146,-151.0,0.00023699,7]
[329389922,1718317856167,-151.0,0.00023699,7]
[329389923,1718317856177,-151.0,0.00023699,7]
[329389924,1718317856195,-151.0,0.00023699,7]
[329389925,1718317856206,-151.0,0.00023699,7]
[329389926,1718317856218,-900.0,0.000237,8]
[329389927,1718317856230,-150.0,0.00023701,2]
[329389928,1718317856241,-150.0,0.00023709,2]
[329389929,1718317856264,-150.0,0.00023711,2]
[329389930,1718317856275,-150.0,0.00023715,2]
[329389931,1718317856287,-1500.0,0.00023718,2]
[329389932,1718317856300,-150.0,0.0002372,2]
[329389933,1718317856314,-150.0,0.00023721,2]
[329389934,1718317856326,-1500.0,0.00023722,2]
[329389935,1718317856337,-150.0,0.00023725,2]
[329389936,1718317856350,-150.0,0.00023727,2]
[329389937,1718317856368,-1500.0,0.00023727,2]
[329389938,1718317856381,-150.0,0.00023728,2]
[329389939,1718317856396,-150.0,0.00023728,2]
[329389940,1718317856410,-150.0,0.00023729,2]
[329389941,1718317856426,-150.0,0.0002373,2]
[329389942,1718317856445,-150.0,0.00023731,2]
[329389943,1718317856477,-150.0,0.00023733,2]
[329389944,1718317856487,-150.0,0.00023736,2]
[329389945,1718317856507,-150.0,0.00023741,2]
[329389946,1718317856519,-150.0,0.00023743,2]
[329389947,1718317856552,-150.0,0.00023745,2]
[329389948,1718317856563,-150.0,0.00023747,2]
[329389949,1718317856573,-1500.0,0.0002375,2]
[329389950,1718317856583,-150.0,0.0002375,2]
[329389951,1718317856599,-150.0,0.00023753,2]
[329389952,1718317856609,-150.0,0.00023754,2]
[329389953,1718317856626,-150.0,0.00023766,2]
[329389954,1718317856636,-300.0,0.00023769,2]
[329389955,1718317856646,-1500.0,0.0002377,2]
[329389956,1718317856656,-150.0,0.00023775,2]
[329389957,1718317856680,-300.0,0.00023776,2]
[329389958,1718317856690,-300.0,0.00023777,2]
[329389959,1718317856717,-307.25308838,0.00023778,2]
[329389960,1718317856744,-150.0,0.00023785,2]
[329389961,1718317856755,-150.0,0.00023786,2]
[329389962,1718317856769,-1500.0,0.00023787,2]
[329389963,1718317856788,-150.0,0.00023787,2]
[329389964,1718317856800,-150.0,0.00023789,2]
[329389965,1718317856810,-150.0,0.0002379,2]
[329389966,1718317856825,-150.0,0.00023793,2]
[329389967,1718317856852,-150.0,0.00023798,2]
[329389968,1718317856863,-150.0,0.00023799,2]
[329389969,1718317856878,-1300.0,0.000238,8]
[329389970,1718317856891,-150.0,0.000238,2]
[329389971,1718317856917,-150.0,0.00023801,2]
[329389972,1718317856936,-150.0,0.00023801,2]
[329389973,1718317856952,-150.0,0.00023804,2]
[329389974,1718317856964,-151.12643296,0.00023804,2]
[329389975,1718317856974,-150.0,0.00023805,2]
[329389976,1718317856984,-150.0,0.00023806,2]
[329389977,1718317856994,-150.0,0.00023808,2]
[329389978,1718317857005,-150.0,0.0002381,2]
[329389979,1718317857015,-1500.0,0.00023813,2]
[329389980,1718317857026,-150.0,0.00023813,2]
[329389981,1718317857036,-150.0,0.00023815,2]
[329389982,1718317857050,-150.0,0.00023818,2]
[329389983,1718317857070,-150.0,0.0002382,2]
[329389984,1718317857082,-302.24367638,0.00023824,2]
[329389985,1718317857108,-150.0,0.00023825,2]
[329389986,1718317857124,-150.0,0.00023828,2]
[329389987,1718317857135,-150.0,0.00023833,2]
[329389988,1718317857156,-150.0,0.00023835,2]
[329389989,1718317857173,-1075.38446882,0.00023837,2]
[329389990,1718317857214,-150.0,0.00023837,2]
[329389991,1718317857258,-150.0,0.00023841,2]
[329389992,1718317857272,-150.0,0.00023842,2]
[329389993,1718317857289,-150.0,0.00023843,2]
[329389994,1718317857300,-10000.0,0.00023843,2]
[329389995,1718317857341,-150.0,0.00023845,2]
[329389996,1718317857365,-150.0,0.00023848,2]
[329389997,1718317857382,-150.0,0.0002385,2]
[329389998,1718317857404,-150.0,0.0002385,2]
[329389999,1718317857438,-150.0,0.0002385,2]
[329390000,1718317857454,-150.0,0.00023851,2]
[329390001,1718317857467,-150.0,0.00023851,2]
[329390002,1718317857485,-150.0,0.00023851,2]
[329390003,1718317857507,-150.0,0.00023852,2]
[329390004,1718317857518,-150.0,0.00023857,2]
[329390005,1718317857545,-150.0,0.00023858,2]
[329390006,1718317857573,-150.0,0.00023861,2]
[329390007,1718317857585,-150.0,0.00023863,2]
[329390008,1718317857598,-150.0,0.00023872,2]
[329390009,1718317857631,-150.0,0.00023875,2]
[329390010,1718317857644,-150.0,0.00023876,2]
[329390011,1718317857657,-150.0,0.00023876,2]
[329390012,1718317857673,-150.0,0.00023877,2]
[329390013,1718317857724,-300.0,0.00023878,2]
[329390014,1718317857743,-150.0,0.00023878,2]
[329390015,1718317857757,-150.0,0.00023879,2]
[329390016,1718317857795,-150.0,0.00023882,2]
[329390017,1718317857806,-150.0,0.00023883,2]
[329390018,1718317857822,-150.0,0.00023883,2]
[329390019,1718317857833,-150.0,0.00023888,2]
[329390020,1718317857848,-150.0,0.00023889,2]
[329390021,1718317857859,-150.0,0.0002389,2]
[329390022,1718317857870,-150.0,0.0002389,2]
[329390023,1718317857880,-150.0,0.00023891,2]
[329390024,1718317857891,-1500.0,0.00023894,2]
[329390025,1718317857904,-150.0,0.00023894,2]
[329390026,1718317857917,-150.0,0.00023895,2]
[329390027,1718317857927,-164.99781835,0.00023896,2]
[329390028,1718317857939,-300.0,0.00023899,2]
[329390029,1718317857951,-404.16416337,0.000239,2]
[329390030,1718317857965,-172.02107131,0.000239,2]
[329390031,1718317857989,-1800.0,0.000239,8]
[329390032,1718317858012,-2235.91361598,0.000239,2]
[329390033,1718317858029,-1142.27562576,0.000239,2]
[329390034,1718317858051,-150.0,0.00023901,2]
[329390035,1718317858063,-150.0,0.00023903,2]
[329390036,1718317858080,-150.0,0.00023906,2]
[329390037,1718317858093,-150.0,0.00023909,2]
[329390038,1718317858106,-300.0,0.00023911,2]
[329390039,1718317858122,-300.0,0.00023911,2]
[329390040,1718317858134,-150.0,0.00023916,2]
[329390041,1718317858145,-150.0,0.00023917,2]
[329390042,1718317858157,-150.0,0.0002392,2]
[329390043,1718317858168,-150.0,0.00023923,2]
[329390044,1718317858196,-150.0,0.00023927,2]
[329390045,1718317858213,-150.0,0.00023928,2]
[329390046,1718317858226,-150.0,0.00023928,2]
[329390047,1718317858238,-150.0,0.00023934,2]
[329390048,1718317858249,-150.0,0.00023936,2]
[329390049,1718317858260,-150.0,0.00023937,2]
[329390050,1718317858292,-1500.0,0.00023938,2]
[329390051,1718317858303,-1500.0,0.00023943,2]
[329390052,1718317858320,-150.0,0.00023946,2]
[329390053,1718317858332,-150.0,0.00023947,2]
[329390054,1718317858343,-150.0,0.00023948,2]
[329390055,1718317858354,-150.0,0.00023951,2]
[329390056,1718317858376,-150.0,0.00023954,2]
[329390057,1718317858404,-150.0,0.00023957,2]
[329390058,1718317858418,-300.0,0.00023957,2]
[329390059,1718317858429,-150.0,0.00023962,2]
[329390060,1718317858439,-150.0,0.00023962,2]
[329390061,1718317858449,-150.0,0.00023974,2]
[329390062,1718317858472,-150.0,0.00023974,2]
[329390063,1718317858485,-150.0,0.00023974,2]
[329390064,1718317858516,-150.0,0.00023974,2]
[329390065,1718317858526,-1500.0,0.00023977,2]
[329390066,1718317858544,-150.0,0.00023977,2]
[329390067,1718317858557,-150.0,0.00023979,2]
[329390068,1718317858577,-150.0,0.00023979,2]
[329390069,1718317858593,-1500.0,0.0002398,2]
[329390070,1718317858604,-300.0,0.00023981,2]
[329390071,1718317858616,-300.0,0.00023983,2]
[329390072,1718317858632,-14070.4494471,0.00023993,2]
[329390073,1718317858643,-2451.9195608,0.00023993,2]
[329390074,1718317858653,-351.4805999,0.00023993,2]
[329390075,1718317858664,-32196.51204518,0.00024,3]
[329390076,1718317858679,-35007.67515838,0.00024,2]
[329390077,1718317858720,-447.16442403,0.00024,2]
[329390078,1718317858736,-611.0,0.00024,2]
[329390079,1718317858747,-100779.0924346,0.00024,15]
[329390080,1718317858758,-800.0,0.00024,2]
[329390081,1718317858772,-800.0,0.00024,2]
[329390082,1718317858784,-221.557383,0.00024,7]
[329390083,1718317858795,-151.0,0.00024,7]
[329390084,1718317858805,-151.0,0.00024,7]
[329390085,1718317858820,-151.0,0.00024,7]
[329390086,1718317858876,-151.0,0.00024,7]
[329390087,1718317858891,-151.0,0.00024,7]
[329390088,1718317858910,-151.0,0.00024,7]
[329390089,1718317858924,-151.0,0.00024,7]
[329390090,1718317858964,-318.772206,0.00024,7]
[329390091,1718317858978,-151.0,0.00024,7]
[329390092,1718317858994,-318.772206,0.00024,7]
[329390093,1718317859004,-151.0,0.00024,7]
[329390094,1718317859032,-151.0,0.00024,7]
[329390095,1718317859085,-151.0,0.00024,7]
[329390096,1718317859095,-151.0,0.00024,7]
[329390097,1718317859106,-151.0,0.00024,7]
[329390098,1718317859279,-151.0,0.00024,7]
[329390099,1718317859300,-151.0,0.00024,7]
[329390100,1718317859311,-151.0,0.00024,7]
[329390101,1718317859324,-151.0,0.00024,7]
[329390102,1718317859336,-151.0,0.00024,7]
[329390103,1718317859348,-152.657105,0.00024,7]
[329390104,1718317859362,-151.0,0.00024,7]
[329390105,1718317859372,-151.0,0.00024,7]
[329390106,1718317859385,-1906.42084,0.00024,2]
[329390107,1718317859396,-151.0,0.00024,7]
[329390108,1718317859407,-151.0,0.00024,7]
[329390109,1718317859427,-151.0,0.00024,7]
[329390110,1718317859445,-151.0,0.00024,7]
[329390111,1718317859456,-151.0,0.00024,7]
[329390112,1718317859473,-151.0,0.00024,7]
[329390113,1718317859511,-151.0,0.00024,7]
[329390114,1718317859524,-151.0,0.00024,7]
[329390115,1718317859534,-151.0,0.00024,7]
[329390116,1718317859556,-151.0,0.00024,7]
[329390117,1718317859575,-151.0,0.00024,7]
[329390118,1718317859588,-151.0,0.00024,7]
[329390119,1718317859609,-151.0,0.00024,7]
[329390120,1718317859621,-151.0,0.00024,7]
[329390121,1718317859631,-151.0,0.00024,7]
[329390122,1718317859643,-151.0,0.00024,7]
[329390123,1718317859659,-151.0,0.00024,7]
[329390124,1718317859691,-151.0,0.00024,7]
[329390125,1718317859709,-151.0,0.00024,7]
[329390126,1718317859722,-151.0,0.00024,7]
[329390127,1718317859734,-151.0,0.00024,7]
[329390128,1718317859757,-152.320662,0.00024,7]
[329390129,1718317859767,-152.320662,0.00024,7]
[329390130,1718317859792,-150.0,0.00024,4]
[329390131,1718317859813,-227.709661,0.00024,7]
[329390132,1718317859825,-227.709661,0.00024,7]
[329390133,1718317859838,-396.2897,0.00024,2]
[329390134,1718317859853,-151.0,0.00024,7]
[329390135,1718317859865,-151.0,0.00024,7]
[329390136,1718317859881,-151.0,0.00024,7]
[329390137,1718317859891,-151.0,0.00024,7]
[329390138,1718317859912,-151.0,0.00024,7]
[329390139,1718317859923,-171.273403,0.00024001,2]
[329390140,1718317859944,-178.35118489,0.00024009,2]
[329390141,1718317859957,-994.461,0.00024078,2]
[329390142,1718317859986,-155.09,0.00024089,15]
[329390143,1718317860008,-150.5,0.00024099,15]
[329390144,1718317860031,-1672.9149936,0.000241,2]
[329390145,1718317860042,-789.68098133,0.00024107,2]
[329390146,1718317860055,-536.90836236,0.00024107,2]
[329390147,1718317860068,-820.52253541,0.00024107,2]
[329390148,1718317860080,-209.44449682,0.00024107,2]
[329390149,1718317860095,-150.0,0.00024108,2]
[329390150,1718317860108,-150.0,0.00024108,10]
[329390151,1718317860120,-150.0,0.00024108,10]
[329390152,1718317860135,-150.0,0.00024108,10]
[329390153,1718317860149,-150.0,0.00024108,10]
[329390154,1718317860174,-500.0,0.00024109,2]
[329390155,1718317860195,-500.0,0.00024109,2]
[329390156,1718317860205,-508.71904701,0.00024109,2]
[329390157,1718317860215,-500.0,0.00024109,2]
[329390158,1718317860244,-500.0,0.00024109,2]
[329390159,1718317860269,-197.35742139,0.00024109,2]
[329390160,1718317860292,-500.0,0.00024109,2]
[329390161,1718317860309,-500.0,0.00024109,2]
[329390162,1718317860339,-500.0,0.00024109,2]
[329390163,1718317860353,-418.45056062,0.00024109,2]
[329390164,1718317860365,-505.53346064,0.00024109,2]
[329390165,1718317860388,-500.0,0.00024109,2]
[329390166,1718317860399,-500.0,0.00024109,2]
[329390167,1718317860429,-500.0,0.00024109,2]
[329390168,1718317860439,-500.0,0.00024109,2]
[329390169,1718317860449,-500.0,0.00024109,2]
[329390170,1718317860492,-572.98052788,0.00024109,2]
[329390171,1718317860520,-500.0,0.00024109,2]
[329390172,1718317860560,-500.0,0.00024109,2]
[329390173,1718317860585,-558.07445836,0.00024109,2]
[329390174,1718317860608,-500.0,0.00024109,2]
[329390175,1718317860622,-500.83356574,0.00024109,2]
[329390176,1718317860646,-500.0,0.00024109,2]
[329390177,1718317860680,-500.0,0.00024109,2]
[329390178,1718317860691,-153.99688029,0.00024109,2]
[329390179,1718317860702,-501.5004867,0.00024109,2]
[329390180,1718317860715,-500.0,0.00024109,2]
[329390181,1718317860726,-500.0,0.00024109,2]
[329390182,1718317860736,-501.9135992,0.00024109,2]
[329390183,1718317860754,-500.0,0.00024109,2]
[329390184,1718317860766,-503.25431293,0.00024109,2]
[329390185,1718317860785,-500.0,0.00024109,2]
[329390186,1718317860799,-501.66165813,0.00024109,2]
[329390187,1718317860815,-500.0,0.00024109,2]
[329390188,1718317860833,-500.0,0.00024109,2]
[329390189,1718317860843,-500.0,0.00024109,2]
[329390190,1718317860888,-502.97270323,0.00024109,2]
[329390191,1718317860907,-500.0,0.00024109,2]
[329390192,1718317860918,-500.0,0.00024109,2]
[329390193,1718317860953,-500.0,0.00024109,2]
[329390194,1718317860968,-503.17931798,0.00024109,2]
[329390195,1718317861005,-501.78910557,0.00024109,2]
[329390196,1718317861015,-500.0,0.00024109,2]
[329390197,1718317861031,-500.0,0.00024109,2]
[329390198,1718317861045,-500.0,0.00024109,2]
[329390199,1718317861061,-2000.0,0.00024109,2]
[329390200,1718317861073,-503.19712099,0.00024109,2]
[329390201,1718317861087,-501.53820443,0.00024109,2]
[329390202,1718317861111,-501.92804048,0.00024109,2]
[329390203,1718317861128,-524.40735812,0.00024109,2]
[329390204,1718317861143,-500.0,0.00024109,2]
[329390205,1718317861155,-500.0,0.00024109,2]
[329390206,1718317861171,-501.38185139,0.00024109,2]
[329390207,1718317861182,-500.0,0.00024109,2]
[329390208,1718317861201,-501.82181966,0.00024109,2]
[329390209,1718317861216,-506.70918247,0.00024109,2]
[329390210,1718317861256,-500.0,0.00024109,2]
[329390211,1718317861267,-500.0,0.00024109,2]
[329390212,1718317861278,-500.0,0.00024109,2]
[329390213,1718317861303,-501.5904941,0.00024109,2]
[329390214,1718317861345,-500.0,0.00024109,2]
[329390215,1718317861383,-500.0,0.00024109,2]
[329390216,1718317861413,-200.0,0.00024109,2]
[329390217,1718317861425,-546.3794079,0.00024109,2]
[329390218,1718317861454,-500.0,0.00024109,2]
[329390219,1718317861484,-500.0,0.00024109,2]
[329390220,1718317861500,-500.0,0.00024109,2]
[329390221,1718317861522,-525.8,0.00024109,2]
[329390222,1718317861539,-500.0,0.00024109,2]
[329390223,1718317861557,-500.0,0.00024109,2]
[329390224,1718317861574,-500.0,0.00024109,2]
[329390225,1718317861584,-512.22037105,0.00024109,2]
[329390226,1718317861607,-500.0,0.00024109,2]
[329390227,1718317861621,-500.0,0.00024109,2]
[329390228,1718317861643,-500.0,0.00024109,2]
[329390229,1718317861677,-500.0,0.00024109,2]
[329390230,1718317861693,-500.0,0.00024109,2]
[329390231,1718317861705,-500.0,0.00024109,2]
[329390232,1718317861716,-500.0,0.00024109,2]
[329390233,1718317861729,-500.0,0.00024109,2]
[329390234,1718317861739,-500.0,0.00024109,2]
[329390235,1718317861768,-500.0,0.00024109,2]
[329390236,1718317861779,-500.0,0.00024109,2]
[329390237,1718317861795,-500.0,0.00024109,2]
[329390238,1718317861819,-500.0,0.00024109,2]
[329390239,1718317861837,-500.0,0.00024109,2]
[329390240,1718317861848,-500.0,0.00024109,2]
[329390241,1718317861859,-500.0,0.00024109,2]
[329390242,1718317861876,-500.0,0.00024109,2]
[329390243,1718317861891,-500.0,0.00024109,2]
[329390244,1718317861915,-500.0,0.00024109,2]
[329390245,1718317861928,-603.83900383,0.00024109,2]
[329390246,1718317861949,-500.0,0.00024109,2]
[329390247,1718317861961,-159.96464435,0.00024109,2]
[329390248,1718317861974,-500.0,0.00024109,2]
[329390249,1718317861985,-500.0,0.00024109,2]
[329390250,1718317861996,-184.26018314,0.00024109,2]
[329390251,1718317862011,-500.0,0.00024109,2]
[329390252,1718317862022,-500.0,0.00024109,2]
[329390253,1718317862035,-550.62,0.00024109,2]
[329390254,1718317862052,-500.0,0.00024109,2]
[329390255,1718317862070,-500.0,0.00024109,2]
[329390256,1718317862093,-500.0,0.00024109,2]
[329390257,1718317862106,-500.0,0.00024109,2]
[329390258,1718317862117,-500.0,0.00024109,2]
[329390259,1718317862128,-647.06015092,0.00024109,2]
[329390260,1718317862139,-500.0,0.00024109,2]
[329390261,1718317862180,-291.32542202,0.00024109,2]
[329390262,1718317862193,-500.0,0.00024109,2]
[329390263,1718317862205,-500.0,0.00024109,2]
[329390264,1718317862242,-500.0,0.00024109,2]
[329390265,1718317862286,-500.0,0.00024109,2]
[329390266,1718317862310,-500.0,0.00024109,2]
[329390267,1718317862330,-500.0,0.00024109,2]
[329390268,1718317862342,-500.0,0.00024109,2]
[329390269,1718317862353,-500.0,0.00024109,2]
[329390270,1718317862365,-500.0,0.00024109,2]
[329390271,1718317862375,-500.0,0.00024109,2]
[329390272,1718317862386,-500.0,0.00024109,2]
[329390273,1718317862397,-500.0,0.00024109,2]